bitfinex/quotes_BTCUSD_20250109
["timestamp","ask_amount","ask_price","bid_price","bid_amount"]
[1736403714830,0.36737818,94674.0,94673.0,0.0050001]
[1736403716070,0.27270858,94674.0,94673.0,0.0050001]
[1736403717160,0.62356952,94674.0,94673.0,0.0050001]
[1736403718597,0.81281678,94674.0,94673.0,0.0050001]
[1736403719888,0.82936709,94674.0,94673.0,0.0050001]
[1736403720950,0.81281678,94674.0,94673.0,0.0050001]
[1736403721862,0.62356952,94674.0,94673.0,0.0050001]
[1736403725539,0.64011985,94674.0,94673.0,0.0050001]
[1736403728512,0.62356952,94674.0,94673.0,0.0050001]
[1736403728886,0.87726904,94674.0,94673.0,0.0050001]
[1736403729085,0.77296928,94674.0,94673.0,0.0050001]
[1736403730621,0.77296928,94674.0,94673.0,0.0040001]
[1736403730827,0.94966928,94674.0,94673.0,0.0040001]
[1736403731026,0.95066928,94674.0,94673.0,1e-07]
[1736403731231,1.05496904,94674.0,94673.0,1e-07]
[1736403731401,1.47806904,94674.0,94673.0,1e-07]
[1736403731607,1.47606904,94674.0,94673.0,1e-07]
[1736403731804,1.49462153,94674.0,94673.0,1e-07]
[1736403732050,1.49962153,94674.0,94673.0,1e-07]
[1736403732255,1.39532177,94674.0,94673.0,1e-07]
[1736403732574,1.39332177,94674.0,94673.0,1e-07]
[1736403732785,1.19561319,94674.0,94673.0,1e-07]
[1736403732986,1.1790607,94674.0,94673.0,1e-07]
[1736403733191,1.28336046,94674.0,94673.0,1e-07]
[1736403733426,1.11066928,94674.0,94673.0,1e-07]
[1736403733626,1.08892928,94674.0,94673.0,1e-07]
[1736403733844,0.88396928,94674.0,94673.0,1e-07]
[1736403734286,0.77966952,94674.0,94673.0,1e-07]
[1736403734500,0.45756952,94674.0,94673.0,1e-07]
[1736403734974,0.82057246,94674.0,94673.0,1e-07]
[1736403736281,0.83712308,94674.0,94673.0,1e-07]
[1736403737274,0.82057246,94674.0,94673.0,1e-07]
[1736403737472,0.91217611,94674.0,94673.0,1e-07]
[1736403738016,1.19587587,94674.0,94673.0,1e-07]
[1736403738181,1.29587587,94674.0,94673.0,1e-07]
[1736403738389,1.10587293,94674.0,94673.0,1e-07]
[1736403739179,1.39087734,94674.0,94673.0,1e-07]
[1736403741197,1.29087734,94674.0,94673.0,1e-07]
[1736403741630,1.00587293,94674.0,94673.0,1e-07]
[1736403741855,1.10587293,94674.0,94673.0,1e-07]
[1736403742602,0.91426928,94674.0,94673.0,1e-07]
[1736403742820,0.81426928,94674.0,94673.0,1e-07]
[1736403743020,0.91426928,94674.0,94673.0,1e-07]
[1736403743225,0.73486928,94674.0,94673.0,1e-07]
[1736403743661,0.83486928,94674.0,94673.0,1e-07]
[1736403745288,0.73486928,94674.0,94673.0,1e-07]
[1736403745483,0.83486928,94674.0,94673.0,1e-07]
[1736403745867,0.85142062,94674.0,94673.0,1e-07]
[1736403746738,0.75142062,94674.0,94673.0,1e-07]
[1736403747168,0.85142062,94674.0,94673.0,1e-07]
[1736403748795,0.75142062,94674.0,94673.0,1e-07]
[1736403749412,0.85142062,94674.0,94673.0,1e-07]
[1736403750460,0.83486928,94674.0,94673.0,1e-07]
[1736403751575,0.93916904,94674.0,94673.0,1e-07]
[1736403751768,0.023,94673.0,94661.0,0.0789]
[1736403752002,0.211278,94662.0,94661.0,0.07940169]
[1736403753433,0.31098658,94662.0,94661.0,0.07940169]
[1736403753963,0.31098658,94662.0,94661.0,0.12690169]
[1736403754491,0.211278,94662.0,94661.0,0.12690169]
[1736403754737,0.31098658,94662.0,94661.0,0.12690169]
[1736403755711,0.31098658,94662.0,94661.0,0.12990169]
[1736403755943,0.31098658,94662.0,94661.0,0.12790169]
[1736403756420,0.31098658,94662.0,94661.0,0.12890169]
[1736403756637,0.211267,94667.0,94662.0,0.0815]
[1736403757842,0.09970858,94663.0,94662.0,0.0815]
[1736403758064,0.09970858,94663.0,94662.0,0.0825]
[1736403758778,0.09970858,94664.0,94662.0,0.0845]
[1736403759000,0.09970858,94664.0,94662.0,0.0835]
[1736403759195,0.09970858,94664.0,94662.0,0.0885]
[1736403759631,0.09970858,94664.0,94662.0,0.0865]
[1736403760732,0.09970858,94664.0,94662.0,0.0815]
[1736403761158,0.09970858,94664.0,94662.0,0.0865]
[1736403761377,0.09970858,94664.0,94662.0,0.0885]
[1736403763516,0.211275,94663.0,94662.0,0.0885]
[1736403764362,0.211275,94663.0,94662.0,0.0815]
[1736403764743,0.211275,94663.0,94662.0,0.0885]
[1736403774047,0.211269,94666.0,94662.0,0.0885]
[1736403774247,0.09970858,94664.0,94662.0,0.0885]
[1736403774775,0.211275,94663.0,94662.0,0.0865]
[1736403775005,0.211275,94663.0,94662.0,0.0815]
[1736403775405,0.211275,94663.0,94662.0,0.0875]
[1736403775586,0.211275,94663.0,94662.0,0.0835]
[1736403775985,0.211275,94663.0,94662.0,0.0885]
[1736403776187,0.211275,94663.0,94662.0,0.007]
[1736403776933,0.211275,94663.0,94662.0,0.005]
[1736403777132,0.211275,94663.0,94662.0,0.007]
[1736403778405,0.31098358,94663.0,94662.0,0.007]
[1736403778645,0.33398358,94663.0,94662.0,0.007]
[1736403779394,0.38128358,94663.0,94662.0,0.007]
[1736403780040,0.38128358,94663.0,94662.0,0.005]
[1736403780238,0.38128358,94663.0,94662.0,0.007]
[1736403780450,0.41046806,94663.0,94662.0,0.007]
[1736403780654,0.41046806,94663.0,94662.0,0.002]
[1736403780845,0.12270858,94662.0,94661.0,0.00050169]
[1736403782253,0.12270858,94662.0,94661.0,0.00150169]
[1736403783790,0.21772148,94662.0,94661.0,0.00150169]
[1736403785878,0.23427358,94662.0,94661.0,0.00150169]
[1736403787311,0.21772148,94662.0,94661.0,0.00150169]
[1736403788511,0.24796536,94662.0,94661.0,0.00150169]
[1736403788716,0.21772148,94662.0,94661.0,0.00150169]
[1736403790313,0.47202124,94662.0,94661.0,0.00150169]
[1736403791548,0.91788147,94662.0,94661.0,0.00150169]
[1736403793665,0.72777789,94662.0,94661.0,0.00150169]
[1736403795732,0.91776977,94662.0,94661.0,0.00150169]
[1736403795935,1.02206953,94662.0,94661.0,0.00150169]
[1736403796645,0.83207765,94662.0,94661.0,0.00150169]
[1736403797291,0.91487765,94662.0,94661.0,0.00150169]
[1736403797735,1.15236751,94662.0,94661.0,0.00150169]
[1736403798441,1.15236751,94662.0,94661.0,0.00050169]
[1736403798847,1.15536751,94662.0,94661.0,0.00050169]
[1736403799089,0.91487765,94662.0,94661.0,0.00050169]
[1736403799294,0.91587765,94662.0,94661.0,0.00050169]
[1736403799469,0.91987765,94662.0,94661.0,0.00050169]
[1736403799676,0.81557789,94662.0,94661.0,0.00050169]
[1736403799876,0.81457789,94662.0,94661.0,0.00050169]
[1736403800292,0.81557789,94662.0,94661.0,0.00050169]
[1736403801228,1.00547345,94662.0,94661.0,0.00050169]
[1736403801902,1.11113444,94662.0,94661.0,0.00050169]
[1736403804177,0.37270858,94660.0,94659.0,9e-08]
[1736403804437,0.37270858,94660.0,94655.0,0.0001704]
[1736403804438,0.34970858,94656.0,94655.0,7.6e-07]
[1736403804643,0.6578081,94656.0,94655.0,7.6e-07]
[1736403805053,0.7578081,94656.0,94655.0,7.6e-07]
[1736403805639,0.7638081,94656.0,94655.0,7.6e-07]
[1736403805994,1.43667765,94656.0,94655.0,7.6e-07]
[1736403806401,1.48277765,94656.0,94655.0,7.6e-07]
[1736403806626,1.48477765,94656.0,94655.0,7.6e-07]
[1736403810964,1.48655566,94656.0,94655.0,7.6e-07]
[1736403811751,1.48455566,94656.0,94655.0,7.6e-07]
[1736403811965,0.46104458,94636.0,94632.0,0.0001704]
[1736403812166,0.6926441,94636.0,94632.0,0.0001704]
[1736403812732,0.58834434,94636.0,94632.0,0.0001704]
[1736403813440,0.59134434,94636.0,94632.0,0.0001704]
[1736403816964,0.61265758,94636.0,94632.0,0.0001704]
[1736403819052,0.62300448,94636.0,94632.0,0.0001704]
[1736403825671,0.62000448,94636.0,94632.0,0.0001704]
[1736403826093,0.62200448,94636.0,94632.0,0.0001704]
[1736403826294,0.62000448,94636.0,94632.0,0.0001704]
[1736403826627,0.62200448,94636.0,94632.0,0.0001704]
[1736403827014,0.71485909,94636.0,94632.0,0.0001704]
[1736403827216,0.71985909,94636.0,94632.0,0.0001704]
[1736403827615,0.71485909,94636.0,94632.0,0.0001704]
[1736403828013,0.62000448,94636.0,94632.0,0.0001704]
[1736403828205,0.72430424,94636.0,94632.0,0.0001704]
[1736403828555,0.72630424,94636.0,94632.0,0.0001704]
[1736403829011,0.82415885,94636.0,94632.0,0.0001704]
[1736403829197,0.82615885,94636.0,94632.0,0.0001704]
[1736403829341,0.82115885,94636.0,94632.0,0.0001704]
[1736403829741,0.82415885,94636.0,94632.0,0.0001704]
[1736403829974,0.72185909,94636.0,94632.0,0.0001704]
[1736403831014,0.71685909,94636.0,94632.0,0.0001704]
[1736403831853,0.62200448,94636.0,94632.0,0.0001704]
[1736403832055,0.62000448,94636.0,94632.0,0.0001704]
[1736403832389,0.72700448,94636.0,94632.0,0.0001704]
[1736403832598,0.41106858,94625.0,94606.0,0.0808]
[1736403832837,0.53836834,94625.0,94606.0,0.0808]
[1736403833040,0.53836834,94625.0,94601.0,0.0484]
[1736403833041,0.62106834,94625.0,94601.0,0.0484]
[1736403833240,0.77106834,94625.0,94601.0,0.0484]
[1736403833556,0.8753681,94625.0,94601.0,0.0484]
[1736403833996,1.01814992,94625.0,94601.0,0.0484]
[1736403834166,1.01814992,94625.0,94623.0,2e-07]
[1736403834167,0.37270858,94624.0,94623.0,2e-07]
[1736403834394,0.79910834,94624.0,94623.0,2e-07]
[1736403834598,0.9294581,94624.0,94623.0,2e-07]
[1736403834813,0.68408458,94618.0,94617.0,2e-07]
[1736403835020,0.84294434,94618.0,94617.0,2e-07]
[1736403835428,0.92564434,94618.0,94617.0,2e-07]
[1736403836253,1.19318434,94618.0,94617.0,2e-07]
[1736403836469,1.3570441,94618.0,94617.0,2e-07]
[1736403836857,1.70750236,94618.0,94617.0,2e-07]
[1736403837052,1.55294236,94618.0,94617.0,2e-07]
[1736403837255,1.4205026,94618.0,94617.0,2e-07]
[1736403839094,1.6577032,94618.0,94617.0,2e-07]
[1736403839532,1.77880657,94618.0,94617.0,2e-07]
[1736403839912,1.85500657,94618.0,94617.0,2e-07]
[1736403840217,1.95930633,94618.0,94617.0,2e-07]
[1736403840829,0.46112858,94598.0,94597.0,0.0001706]
[1736403841032,1.06508834,94598.0,94597.0,0.0001706]
[1736403841691,1.06508834,94598.0,94570.0,0.0475]
[1736403841692,0.37270858,94595.0,94570.0,0.0475]
[1736403841920,0.79910834,94595.0,94594.0,6e-07]
[1736403842140,0.90518619,94595.0,94594.0,6e-07]
[1736403843022,0.91018619,94595.0,94594.0,0.00015044]
[1736403843438,0.80410834,94595.0,94594.0,0.00015044]
[1736403843846,0.79910834,94595.0,94594.0,0.00015044]
[1736403844098,0.80010834,94595.0,94594.0,0.00015044]
[1736403844281,0.81054735,94595.0,94594.0,0.00015044]
[1736403844578,0.80954735,94595.0,94594.0,0.00015044]
[1736403844781,0.91684711,94595.0,94594.0,0.00015044]
[1736403844957,0.91684711,94595.0,94594.0,4.4e-07]
[1736403845160,0.91384711,94595.0,94594.0,4.4e-07]
[1736403845409,0.92284711,94595.0,94594.0,4.4e-07]
[1736403845590,0.9186252,94595.0,94594.0,4.4e-07]
[1736403845906,1.27733541,94595.0,94594.0,4.4e-07]
[1736403846336,1.26833541,94595.0,94594.0,4.4e-07]
[1736403846549,1.27733541,94595.0,94594.0,4.4e-07]
[1736403846929,1.26533541,94595.0,94594.0,4.4e-07]
[1736403847138,0.9246252,94595.0,94594.0,4.4e-07]
[1736403847285,0.9276252,94595.0,94594.0,4.4e-07]
[1736403847487,0.92584711,94595.0,94594.0,4.4e-07]
[1736403847788,0.92284711,94595.0,94594.0,4.4e-07]
[1736403847969,0.9276252,94595.0,94594.0,4.4e-07]
[1736403848406,0.9186252,94595.0,94594.0,4.4e-07]
[1736403848601,0.1,94582.0,94567.0,0.076]
[1736403848811,0.12270858,94579.0,94567.0,0.076]
[1736403849145,0.22700834,94579.0,94567.0,0.076]
[1736403850041,0.23000834,94579.0,94567.0,0.076]
[1736403851188,0.24087108,94579.0,94567.0,0.076]
[1736403851444,0.81297108,94579.0,94560.0,0.0782]
[1736403851684,0.91727084,94579.0,94560.0,0.0782]
[1736403852129,0.91727084,94579.0,94578.0,6e-07]
[1736403852305,0.91427084,94579.0,94578.0,6e-07]
[1736403852733,0.92027084,94579.0,94578.0,6e-07]
[1736403853116,0.31122058,94557.0,94556.0,8.53e-05]
[1736403853305,0.43852034,94557.0,94556.0,8.53e-05]
[1736403853731,0.43852034,94557.0,94556.0,3e-07]
[1736403853732,0.68852034,94557.0,94556.0,3e-07]
[1736403854048,0.33425658,94541.0,94540.0,0.0001706]
[1736403854259,0.43855634,94541.0,94540.0,0.0001706]
[1736403854484,0.53521904,94541.0,94540.0,0.0001706]
[1736403855935,0.53721904,94541.0,94540.0,0.0001706]
[1736403856984,0.59181904,94541.0,94540.0,0.0001706]
[1736403857180,0.62397526,94541.0,94540.0,0.0001706]
[1736403858154,0.77397526,94541.0,94540.0,0.0001706]
[1736403859151,0.77197526,94541.0,94540.0,0.0001706]
[1736403859872,0.67581163,94541.0,94540.0,0.0001706]
[1736403860086,0.4773175,94541.0,94540.0,0.0001706]
[1736403860485,0.5003175,94541.0,94540.0,0.0001706]
[1736403861243,0.38504707,94541.0,94540.0,0.0793706]
[1736403862225,0.48975565,94541.0,94540.0,0.0793706]
[1736403862350,0.39004707,94541.0,94540.0,0.0793706]
[1736403862571,0.4482337,94541.0,94540.0,0.0793706]
[1736403862773,0.38604707,94541.0,94540.0,0.0803706]
[1736403863179,0.33475565,94541.0,94540.0,0.0803706]
[1736403863386,0.00049907,94541.0,94540.0,0.1293706]
[1736403864177,0.00049907,94541.0,94540.0,0.1283706]
[1736403864428,0.00049907,94541.0,94540.0,0.1293706]
[1736403864771,0.00149907,94541.0,94540.0,0.1283706]
[1736403865118,0.00149907,94541.0,94540.0,0.1323706]
[1736403865331,0.05292794,94541.0,94540.0,0.1323706]
[1736403865724,0.05392794,94541.0,94540.0,0.1283706]
[1736403866019,0.05292794,94541.0,94540.0,0.1323706]
[1736403866450,0.05392794,94541.0,94540.0,0.1323706]
[1736403866653,0.05292794,94541.0,94540.0,0.1323706]
[1736403867477,0.05292794,94541.0,94540.0,0.1283706]
[1736403867679,0.05292794,94541.0,94540.0,0.1323706]
[1736403868039,0.12420765,94541.0,94540.0,0.0833706]
[1736403868253,0.12420765,94541.0,94540.0,0.0041706]
[1736403868801,0.12320765,94541.0,94540.0,0.0001706]
[1736403869217,0.12320765,94541.0,94540.0,0.0021706]
[1736403869455,0.10020765,94541.0,94540.0,0.0021706]
[1736403869865,0.00049907,94541.0,94540.0,0.0021706]
[1736403870083,0.00049907,94541.0,94540.0,0.1275706]
[1736403870294,0.00049907,94541.0,94540.0,0.23292797]
[1736403870519,0.00049907,94541.0,94540.0,0.23187036]
[1736403870716,0.00049907,94541.0,94540.0,0.22987036]
[1736403871157,0.00049907,94541.0,94540.0,0.23187036]
[1736403872100,0.00049907,94541.0,94540.0,0.22987036]
[1736403872305,0.00149907,94541.0,94540.0,0.22987036]
[1736403872517,0.00249907,94541.0,94540.0,0.23487036]
[1736403874391,0.00249907,94541.0,94540.0,0.26782044]
[1736403875363,0.00249907,94541.0,94540.0,0.23487036]
[1736403875799,0.01906942,94541.0,94540.0,0.23487036]
[1736403877095,0.01906942,94541.0,94540.0,0.26783163]
[1736403877979,0.01906942,94541.0,94540.0,0.23487036]
[1736403878650,0.01906942,94541.0,94540.0,0.1305706]
[1736403879233,0.00249907,94541.0,94540.0,0.1305706]
[1736403881232,0.02390288,94541.0,94540.0,0.0051706]
[1736403889006,0.02290288,94541.0,94540.0,0.0051706]
[1736403889794,0.02190288,94541.0,94540.0,0.0001706]
[1736403889997,0.14461146,94541.0,94540.0,0.0001706]
[1736403890167,0.14461146,94541.0,94540.0,0.0021706]
[1736403890370,0.16118373,94541.0,94540.0,0.0021706]
[1736403890590,0.16118373,94541.0,94540.0,0.0001706]
[1736403891043,0.16118373,94541.0,94540.0,0.0021706]
[1736403891230,0.13977992,94541.0,94540.0,0.0021706]
[1736403891439,0.13977992,94541.0,94540.0,0.0001706]
[1736403891870,0.13977992,94541.0,94540.0,0.0021706]
[1736403893767,0.14077992,94541.0,94540.0,0.0021706]
[1736403893971,0.14077992,94541.0,94540.0,0.0001706]
[1736403894180,0.14077992,94541.0,94540.0,0.0011706]
[1736403894181,0.13977992,94541.0,94540.0,0.0011706]
[1736403894386,0.20189571,94541.0,94540.0,0.0011706]
[1736403894595,0.21257764,94541.0,94540.0,0.0011706]
[1736403894773,0.21257764,94541.0,94540.0,0.0001706]
[1736403895002,0.21257764,94541.0,94540.0,0.0011706]
[1736403895670,0.21157764,94541.0,94540.0,0.0001706]
[1736403897213,0.21257764,94541.0,94540.0,0.0011706]
[1736403897418,0.21157764,94541.0,94540.0,0.0011706]
[1736403897825,0.21257764,94541.0,94540.0,0.0001706]
[1736403898116,0.21257764,94541.0,94540.0,0.0011706]
[1736403900166,0.15146185,94541.0,94540.0,0.0011706]
[1736403900381,0.14077992,94541.0,94540.0,0.0011706]
[1736403900587,0.01807134,94541.0,94540.0,0.0011706]
[1736403900800,0.00149907,94541.0,94540.0,0.0011706]
[1736403901219,0.00149907,94541.0,94540.0,0.0001706]
[1736403901419,0.10120765,94541.0,94540.0,0.0001706]
[1736403901628,0.10020765,94541.0,94540.0,0.0011706]
[1736403901834,0.17423942,94541.0,94540.0,0.0011706]
[1736403902131,0.17423942,94541.0,94540.0,0.0001706]
[1736403902404,0.17423942,94541.0,94540.0,0.0021706]
[1736403902807,0.19723942,94541.0,94540.0,0.0021706]
[1736403903758,0.12320765,94541.0,94540.0,0.0001706]
[1736403904085,0.12320765,94541.0,94540.0,0.0021706]
[1736403904640,0.12320765,94541.0,94540.0,0.0001706]
[1736403905020,0.13977954,94541.0,94540.0,0.0021706]
[1736403905271,0.04007096,94541.0,94540.0,0.0021706]
[1736403905422,0.04007096,94541.0,94540.0,0.0001706]
[1736403905809,0.01707096,94541.0,94540.0,0.0001706]
[1736403906239,0.11677954,94541.0,94540.0,0.0001706]
[1736403906902,0.11677954,94541.0,94540.0,0.0011706]
[1736403907084,0.01707096,94541.0,94540.0,0.0011706]
[1736403907492,0.01707096,94541.0,94540.0,0.0001706]
[1736403907625,0.01707096,94541.0,94540.0,0.0021706]
[1736403908651,0.01707096,94541.0,94540.0,0.0001706]
[1736403909054,0.11677954,94541.0,94540.0,0.0001706]
[1736403910184,0.11777954,94541.0,94540.0,0.0021706]
[1736403910391,0.17186519,94541.0,94540.0,0.0021706]
[1736403910588,0.07215661,94541.0,94540.0,0.0021706]
[1736403910790,0.17186519,94541.0,94540.0,0.0021706]
[1736403911194,0.17186519,94541.0,94540.0,0.0001706]
[1736403911367,0.19486519,94541.0,94540.0,0.0001706]
[1736403911565,0.19486519,94541.0,94540.0,0.0031706]
[1736403913062,0.19386519,94541.0,94540.0,0.0001706]
[1736403913261,0.1772933,94541.0,94540.0,0.0001706]
[1736403913522,0.1772933,94541.0,94540.0,0.0021706]
[1736403915733,0.17614806,94541.0,94540.0,0.0021706]
[1736403916354,0.19272081,94541.0,94540.0,0.0001706]
[1736403916748,0.19272081,94541.0,94540.0,0.0021706]
[1736403917126,0.29702057,94541.0,94540.0,0.0001706]
[1736403917650,0.28044782,94541.0,94540.0,0.0021706]
[1736403919511,0.28044782,94541.0,94540.0,0.0001706]
[1736403920119,0.28044782,94541.0,94540.0,0.0011706]
[1736403920522,0.28044782,94541.0,94540.0,0.0001706]
[1736403920715,0.29702078,94541.0,94540.0,0.0001706]
[1736403920892,0.29702078,94541.0,94540.0,0.0011706]
[1736403921293,0.43907672,94541.0,94540.0,0.0001706]
[1736403921703,0.38563724,94541.0,94540.0,0.0001706]
[1736403922770,0.28133748,94541.0,94540.0,0.0001706]
[1736403923010,0.1816289,94541.0,94540.0,0.0001706]
[1736403923620,0.14205594,94542.0,94540.0,0.0001706]
[1736403923825,0.211548,94541.0,94540.0,0.00122045]
[1736403924326,0.211548,94541.0,94540.0,0.00022045]
[1736403924523,0.211548,94541.0,94540.0,0.00122045]
[1736403925021,0.211548,94541.0,94540.0,0.00022045]
[1736403925435,0.211548,94541.0,94540.0,0.00322045]
[1736403926288,0.212548,94541.0,94540.0,0.00322045]
[1736403926498,0.32003756,94541.0,94540.0,0.00322045]
[1736403926677,0.43631873,94541.0,94540.0,0.00322045]
[1736403926816,0.54061849,94541.0,94540.0,0.00322045]
[1736403927228,0.5240459,94541.0,94540.0,0.00322045]
[1736403927443,0.5240459,94541.0,94540.0,0.00022045]
[1736403927644,0.5240459,94541.0,94540.0,0.00322045]
[1736403928221,0.5230459,94541.0,94540.0,0.00322045]
[1736403928519,0.5230459,94541.0,94540.0,0.00022045]
[1736403928717,0.43855634,94541.0,94540.0,0.00022045]
[1736403928935,0.43855634,94541.0,94540.0,0.00322045]
[1736403929920,0.43955634,94541.0,94540.0,0.00722045]
[1736403930117,0.43955634,94541.0,94540.0,0.00422045]
[1736403930372,0.43855634,94541.0,94540.0,0.00022045]
[1736403930576,0.45712906,94541.0,94540.0,0.00122045]
[1736403930919,0.23012072,94541.0,94540.0,0.00022045]
[1736403931121,0.42487806,94541.0,94540.0,0.00022045]
[1736403931315,0.32516948,94541.0,94540.0,0.00022045]
[1736403931568,0.44787806,94541.0,94540.0,0.00022045]
[1736403931913,0.44587806,94541.0,94540.0,0.00022045]
[1736403932361,0.25112072,94541.0,94540.0,0.00022045]
[1736403932529,0.3508293,94541.0,94540.0,0.00022045]
[1736403932933,0.25112072,94541.0,94540.0,0.00022045]
[1736403933360,0.3508293,94541.0,94540.0,0.00022045]
[1736403934169,0.3518293,94541.0,94540.0,0.00022045]
[1736403934365,0.3508293,94541.0,94540.0,0.00222045]
[1736403934793,0.33425658,94541.0,94540.0,0.00422045]
[1736403934996,0.33425658,94541.0,94540.0,0.00022045]
[1736403935167,0.33425658,94541.0,94540.0,0.00122045]
[1736403935376,0.33425658,94541.0,94540.0,0.00222045]
[1736403936377,0.42930534,94541.0,94540.0,0.00222045]
[1736403937144,0.5336051,94541.0,94540.0,0.00222045]
[1736403937577,0.43855634,94541.0,94540.0,0.00222045]
[1736403938001,0.43855634,94541.0,94540.0,0.00122045]
[1736403938202,0.43855634,94541.0,94540.0,0.00022045]
[1736403938431,0.5428561,94541.0,94540.0,0.00122045]
[1736403938632,0.5428561,94541.0,94540.0,0.00222045]
[1736403939807,0.5428561,94541.0,94540.0,0.00022045]
[1736403940214,0.5428561,94541.0,94540.0,0.00122045]
[1736403940784,0.5428561,94541.0,94540.0,0.00022045]
[1736403941163,0.43855634,94541.0,94540.0,0.00122045]
[1736403941369,0.43955634,94541.0,94540.0,0.00122045]
[1736403941545,0.58220282,94541.0,94540.0,0.00022045]
[1736403941753,0.59877594,94541.0,94540.0,0.00122045]
[1736403942454,0.45612946,94541.0,94540.0,0.00122045]
[1736403944114,0.56042922,94541.0,94540.0,0.00122045]
[1736403945055,0.5438561,94541.0,94540.0,0.00122045]
[1736403945462,0.73357507,94541.0,94540.0,0.00122045]
[1736403946825,0.5438561,94541.0,94540.0,0.00122045]
[1736403948918,0.73398205,94541.0,94540.0,0.00122045]
[1736403950328,1.05608205,94541.0,94540.0,0.00122045]
[1736403950946,0.8659561,94541.0,94540.0,0.00122045]
[1736403951686,0.88252937,94541.0,94540.0,0.00122045]
[1736403951898,0.77822961,94541.0,94540.0,0.00122045]
[1736403953183,0.96834994,94541.0,94540.0,0.00122045]
[1736403956278,0.77822961,94541.0,94540.0,0.00122045]
[1736403956835,0.76165634,94541.0,94540.0,0.00122045]
[1736403961403,0.77822967,94541.0,94540.0,0.00122045]
[1736403962044,1.11967814,94541.0,94540.0,0.00122045]
[1736403962829,1.26967814,94541.0,94540.0,0.00122045]
[1736403963270,1.03252943,94541.0,94540.0,0.00122045]
[1736403964023,1.03152943,94541.0,94540.0,0.00122045]
[1736403964237,1.03152943,94541.0,94540.0,0.00022045]
[1736403964432,1.03552943,94541.0,94540.0,0.00022045]
[1736403964661,1.13152943,94541.0,94540.0,0.00022045]
[1736403965050,0.93122967,94541.0,94540.0,0.00022045]
[1736403966043,0.93222967,94541.0,94540.0,0.00022045]
[1736403966310,0.98302967,94541.0,94540.0,0.00022045]
[1736403966683,0.98702967,94541.0,94540.0,0.00022045]
[1736403966922,0.98802967,94541.0,94540.0,0.00022045]
[1736403967283,1.0757561,94541.0,94540.0,0.00022045]
[1736403971850,1.09233031,94541.0,94540.0,0.00022045]
[1736403972658,1.27103031,94541.0,94540.0,0.00022045]
[1736403974231,1.27103031,94541.0,94522.0,8.53e-05]
[1736403974232,0.31128358,94529.0,94522.0,8.53e-05]
[1736403974484,0.48429658,94523.0,94522.0,8.53e-05]
[1736403974674,0.48429658,94523.0,94522.0,0.00058437]
[1736403974675,0.58859634,94523.0,94522.0,0.00058437]
[1736403976440,0.58859634,94523.0,94522.0,0.00158437]
[1736403976648,0.60960114,94523.0,94522.0,0.00158437]
[1736403976877,0.7169009,94523.0,94522.0,0.00158437]
[1736403977054,0.7169009,94523.0,94522.0,0.00058437]
[1736403977261,1.0390009,94523.0,94522.0,0.00058437]
[1736403978796,1.05055767,94523.0,94522.0,0.00058437]
[1736403978998,1.04755767,94523.0,94522.0,0.00058437]
[1736403979197,1.28507303,94523.0,94522.0,0.00058437]
[1736403979847,1.29007303,94523.0,94522.0,0.00058437]
[1736403981787,1.05255767,94523.0,94522.0,0.00058437]
[1736403982839,1.10739767,94523.0,94522.0,0.00058437]
[1736403983453,1.12397439,94523.0,94522.0,0.00058437]
[1736403984413,1.01967463,94523.0,94522.0,0.00058437]
[1736403984551,0.91996605,94523.0,94522.0,0.00058437]
[1736403985393,0.71682149,94523.0,94522.0,0.00058437]
[1736403985805,0.70024477,94523.0,94522.0,0.00058437]
[1736403986218,0.71724477,94523.0,94522.0,0.00058437]
[1736403986424,0.82154453,94523.0,94522.0,0.00058437]
[1736403986576,0.82754453,94523.0,94522.0,0.00058437]
[1736403986778,0.82254453,94523.0,94522.0,0.00058437]
[1736403987178,0.92325311,94523.0,94522.0,0.00058437]
[1736403987805,0.92225311,94523.0,94522.0,0.00058437]
[1736403988218,0.92125311,94523.0,94522.0,0.00158437]
[1736403988629,0.92125311,94523.0,94522.0,0.00058437]
[1736403989332,0.59915311,94523.0,94522.0,0.00058437]
[1736403989553,0.60015311,94523.0,94522.0,0.00058437]
[1736403989912,0.59915311,94523.0,94522.0,0.00058437]
[1736403990157,0.60215311,94523.0,94522.0,0.00058437]
[1736403990360,0.70645287,94523.0,94522.0,0.00058437]
[1736403990765,0.70345287,94523.0,94522.0,0.00058437]
[1736403990990,0.70745287,94523.0,94522.0,0.00058437]
[1736403991318,0.70445287,94523.0,94522.0,0.00058437]
[1736403991739,0.72002918,94523.0,94522.0,0.00058437]
[1736403992054,0.72102918,94523.0,94522.0,0.00058437]
[1736403992661,0.72402918,94523.0,94522.0,0.00058437]
[1736403992921,0.72102918,94523.0,94522.0,0.00058437]
[1736403993110,0.77570918,94523.0,94522.0,0.00058437]
[1736403993284,0.77970918,94523.0,94522.0,0.00058437]
[1736403994111,0.76313287,94523.0,94522.0,0.00058437]
[1736403995696,0.77970924,94523.0,94522.0,0.00058437]
[1736403996910,0.77914852,94523.0,94522.0,0.00058437]
[1736403997265,0.76257215,94523.0,94522.0,0.00058437]
[1736403999964,0.99996541,94523.0,94522.0,0.00058437]
[1736404000402,1.01654357,94523.0,94522.0,0.00058437]
[1736404001460,1.33864357,94523.0,94522.0,0.00058437]
[1736404001697,1.10125031,94523.0,94522.0,0.00058437]
[1736404007651,1.08467215,94523.0,94522.0,0.00058437]
[1736404008809,1.08467215,94523.0,94522.0,3.7e-07]
[1736404009814,1.18467215,94523.0,94522.0,3.7e-07]
[1736404010027,1.26477215,94523.0,94522.0,3.7e-07]
[1736404012012,1.28135104,94523.0,94522.0,3.7e-07]
[1736404012222,0.1,94520.0,94499.0,8.53e-05]
[1736404012544,0.33434158,94503.0,94499.0,8.53e-05]
[1736404012651,0.49332134,94503.0,94499.0,8.53e-05]
[1736404013242,0.50990174,94503.0,94499.0,8.53e-05]
[1736404016603,0.50940174,94503.0,94499.0,8.53e-05]
[1736404017288,0.53081345,94503.0,94499.0,8.53e-05]
[1736404017506,0.51423305,94503.0,94499.0,8.53e-05]
[1736404018518,0.52490719,94503.0,94499.0,8.53e-05]
[1736404019348,0.47022719,94503.0,94502.0,0.0789853]
[1736404019563,0.32151572,94503.0,94502.0,0.0789853]
[1736404019775,0.31084158,94503.0,94502.0,0.0789853]
[1736404019910,0.234133,94503.0,94502.0,0.0789853]
[1736404020534,0.33384158,94503.0,94502.0,0.0789853]
[1736404021353,0.234133,94503.0,94502.0,0.0789853]
[1736404021965,0.2507124,94503.0,94502.0,0.0789853]
[1736404022364,0.35042098,94503.0,94502.0,0.0789853]
[1736404023669,0.2507124,94503.0,94502.0,0.0789853]
[1736404023894,0.35042098,94503.0,94502.0,0.0789853]
[1736404024272,0.0165794,94503.0,94502.0,0.0789853]
[1736404024655,0.211619,94510.0,94502.0,0.0789853]
[1736404025125,0.423238,94510.0,94502.0,0.0789853]
[1736404025535,0.423238,94510.0,94502.0,0.0788983]
[1736404026330,0.424238,94510.0,94502.0,0.0788983]
[1736404026716,0.212619,94510.0,94502.0,0.0788983]